[Event "Titled Tuesday Blitz May 23 Early 2023"]
[White "Staudenhocker43"]
[Black "Hartikainen, Jarmo"]
[BlackFideId "503134"]
[WhiteElo "2526"]
[BlackElo "2089"]
[Result "1-0"]
[Round "01"]
[TimeControl "180+2"]
[Date "2023.05.23"]
[WhiteClock "0:00:45"]
[BlackClock "0:00:03"]

1. d4 {[%clk 0:03:00]}  Nf6 {[%clk 0:02:58]} 2. c4 {[%clk 0:03:00]}  g6 {[%clk 0:02:58]} 3. Nc3 {[%clk 0:02:59]}  d5 {[%clk 0:02:58]} 4. Nf3 {[%clk 0:02:58]}  Bg7 {[%clk 0:02:58]} 5. Qb3 {[%clk 0:02:58]}  dxc4 {[%clk 0:02:52]} 6. Qxc4 {[%clk 0:02:59]}  a6 {[%clk 0:02:49]} 7. e4 {[%clk 0:02:58]}  b5 {[%clk 0:02:47]} 8. Qb3 {[%clk 0:02:58]}  Bb7 {[%clk 0:02:38]} 9. e5 {[%clk 0:02:55]}  Nd5 {[%clk 0:02:34]} 10. Be2 {[%clk 0:02:52]}  O-O {[%clk 0:02:33]} 11. O-O {[%clk 0:02:51]}  Nxc3 {[%clk 0:02:18]} 12. Qxc3 {[%clk 0:02:50]}  Nd7 {[%clk 0:01:40]} 13. Bg5 {[%clk 0:02:33]}  Nb6 {[%clk 0:01:29]} 14. Rac1 {[%clk 0:02:32]}  Nd5 {[%clk 0:01:27]} 15. Qc5 {[%clk 0:02:30]}  h6 {[%clk 0:01:15]} 16. Be3 {[%clk 0:02:29]}  Qd7 {[%clk 0:00:56]} 17. Nd2 {[%clk 0:02:09]}  Rfd8 {[%clk 0:00:46]} 18. Bf3 {[%clk 0:02:04]}  e6 {[%clk 0:00:42]} 19. Ne4 {[%clk 0:01:48]}  Bf8 {[%clk 0:00:36]} 20. Qc2 {[%clk 0:01:48]}  Bg7 {[%clk 0:00:20]} 21. Nc5 {[%clk 0:01:41]}  Qc8 {[%clk 0:00:16]} 22. b3 {[%clk 0:01:29]}  Kh7 {[%clk 0:00:12]} 23. Nxb7 {[%clk 0:01:20]}  Qxb7 {[%clk 0:00:13]} 24. Bxd5 {[%clk 0:01:18]}  Qxd5 {[%clk 0:00:13]} 25. Qxc7 {[%clk 0:01:18]}  Rd7 {[%clk 0:00:12]} 26. Qc5 {[%clk 0:01:14]}  Bf8 {[%clk 0:00:12]} 27. Qxd5 {[%clk 0:01:14]}  Rxd5 {[%clk 0:00:13]} 28. Rc7 {[%clk 0:01:11]}  a5 {[%clk 0:00:13]} 29. Rxf7+ {[%clk 0:01:10]}  Kg8 {[%clk 0:00:14]} 30. Rf6 {[%clk 0:01:09]}  a4 {[%clk 0:00:14]} 31. Rxg6+ {[%clk 0:01:07]}  Kh7 {[%clk 0:00:15]} 32. Rxe6 {[%clk 0:01:06]}  axb3 {[%clk 0:00:15]} 33. axb3 {[%clk 0:01:07]}  Ra3 {[%clk 0:00:16]} 34. Rb1 {[%clk 0:01:05]}  Bb4 {[%clk 0:00:11]} 35. g4 {[%clk 0:01:03]}  Bc3 {[%clk 0:00:12]} 36. Rxh6+ {[%clk 0:01:00]}  Kg7 {[%clk 0:00:12]} 37. Rd6 {[%clk 0:01:00]}  Rxd6 {[%clk 0:00:09]} 38. exd6 {[%clk 0:01:01]}  Ra7 {[%clk 0:00:10]} 39. d5 {[%clk 0:00:53]}  Rd7 {[%clk 0:00:09]} 40. Bf4 {[%clk 0:00:52]}  Bb4 {[%clk 0:00:09]} 41. Rd1 {[%clk 0:00:50]}  Bxd6 {[%clk 0:00:09]} 42. Bxd6 {[%clk 0:00:51]}  Rxd6 {[%clk 0:00:09]} 43. Kg2 {[%clk 0:00:52]}  Kg6 {[%clk 0:00:09]} 44. f4 {[%clk 0:00:52]}  Kf6 {[%clk 0:00:09]} 45. Kf3 {[%clk 0:00:52]}  Ke7 {[%clk 0:00:10]} 46. Ke4 {[%clk 0:00:52]}  Rh6 {[%clk 0:00:10]} 47. Rd2 {[%clk 0:00:51]}  Kd6 {[%clk 0:00:10]} 48. g5 {[%clk 0:00:51]}  Rh3 {[%clk 0:00:10]} 49. g6 {[%clk 0:00:49]}  Rh8 {[%clk 0:00:10]} 50. g7 {[%clk 0:00:47]}  Rg8 {[%clk 0:00:10]} 51. Rg2 {[%clk 0:00:47]}  b4 {[%clk 0:00:09]} 52. f5 {[%clk 0:00:45]}  Ke7 {[%clk 0:00:09]} 53. Ke5 {[%clk 0:00:45]}  Kf7 {[%clk 0:00:09]} 54. f6 {[%clk 0:00:45]}  Re8+ {[%clk 0:00:08]} 55. Kf5 {[%clk 0:00:45]}  Rg8 {[%clk 0:00:06]} 56. Rg4 {[%clk 0:00:44]}  Rd8 {[%clk 0:00:06]} 57. g8=Q+ {[%clk 0:00:44]}  Rxg8 {[%clk 0:00:06]} 58. Rxg8 {[%clk 0:00:44]}  Kxg8 {[%clk 0:00:03]} 59. Ke6 {[%clk 0:00:45]} 1-0


[Site "https://www.chess.com"]

[Event "Titled Tuesday Blitz May 23 Early 2023"]
[White "Torres Dominguez, David"]
[Black "Bagwe Gaurang"]
[WhiteFideId "2220857"]
[BlackFideId "45039895"]
[WhiteElo "1999"]
[BlackElo "1847"]
[Result "1-0"]
[Round "01"]
[TimeControl "180+2"]
[Date "2023.05.23"]
[WhiteClock "0:00:18"]
[BlackClock "0:00:03"]

1. e4 {[%clk 0:03:00]}  c5 {[%clk 0:02:55]} 2. Nc3 {[%clk 0:03:00]}  d6 {[%clk 0:02:51]} 3. Bb5+ {[%clk 0:03:00]}  Nd7 {[%clk 0:02:49]} 4. a4 {[%clk 0:03:00]}  e5 {[%clk 0:02:49]} 5. f4 {[%clk 0:03:00]}  Nf6 {[%clk 0:02:48]} 6. d3 {[%clk 0:02:59]}  a6 {[%clk 0:02:47]} 7. Bc4 {[%clk 0:02:58]}  Be7 {[%clk 0:02:47]} 8. Nf3 {[%clk 0:02:58]}  O-O {[%clk 0:02:47]} 9. O-O {[%clk 0:02:56]}  b6 {[%clk 0:02:47]} 10. Qe1 {[%clk 0:02:52]}  Bb7 {[%clk 0:02:47]} 11. Bd2 {[%clk 0:02:48]}  Re8 {[%clk 0:02:42]} 12. Kh1 {[%clk 0:02:47]}  Bf8 {[%clk 0:02:42]} 13. fxe5 {[%clk 0:02:47]}  dxe5 {[%clk 0:02:35]} 14. Nh4 {[%clk 0:02:38]}  g6 {[%clk 0:02:32]} 15. Bg5 {[%clk 0:02:35]}  h6 {[%clk 0:02:26]} 16. Bxf6 {[%clk 0:02:28]}  Nxf6 {[%clk 0:02:25]} 17. Nxg6 {[%clk 0:02:17]}  Bg7 {[%clk 0:02:24]} 18. Nh4 {[%clk 0:02:17]}  Rf8 {[%clk 0:02:10]} 19. Ng6 {[%clk 0:02:14]}  Re8 {[%clk 0:02:09]} 20. Nh4 {[%clk 0:02:15]}  Re7 {[%clk 0:02:10]} 21. Nf5 {[%clk 0:02:15]}  Qf8 {[%clk 0:02:02]} 22. Qg3 {[%clk 0:02:08]}  Kh8 {[%clk 0:01:54]} 23. Nxe7 {[%clk 0:01:56]}  Qxe7 {[%clk 0:01:55]} 24. Rf5 {[%clk 0:01:55]}  Rg8 {[%clk 0:01:55]} 25. Qxe5 {[%clk 0:01:42]}  Qd8 {[%clk 0:01:45]} 26. Qf4 {[%clk 0:01:36]}  Bc8 {[%clk 0:01:43]} 27. Re5 {[%clk 0:01:05]}  Qc7 {[%clk 0:01:22]} 28. Rf1 {[%clk 0:00:59]}  Nh5 {[%clk 0:00:36]} 29. Rxh5 {[%clk 0:00:57]}  Qc6 {[%clk 0:00:35]} 30. Bd5 {[%clk 0:00:49]}  Qg6 {[%clk 0:00:34]} 31. Bxf7 {[%clk 0:00:43]}  Qg4 {[%clk 0:00:24]} 32. Qxg4 {[%clk 0:00:40]}  Bxg4 {[%clk 0:00:24]} 33. Bxg8 {[%clk 0:00:39]}  Bxh5 {[%clk 0:00:24]} 34. Bf7 {[%clk 0:00:37]}  Bg4 {[%clk 0:00:24]} 35. h3 {[%clk 0:00:37]}  Bd7 {[%clk 0:00:25]} 36. Nd1 {[%clk 0:00:38]}  b5 {[%clk 0:00:25]} 37. axb5 {[%clk 0:00:38]}  axb5 {[%clk 0:00:25]} 38. b3 {[%clk 0:00:39]}  Kh7 {[%clk 0:00:25]} 39. Bd5 {[%clk 0:00:34]}  Bd4 {[%clk 0:00:25]} 40. c4 {[%clk 0:00:34]}  Be8 {[%clk 0:00:24]} 41. Ne3 {[%clk 0:00:32]}  b4 {[%clk 0:00:23]} 42. Nf5 {[%clk 0:00:31]}  Be5 {[%clk 0:00:23]} 43. Ne3 {[%clk 0:00:26]}  Bg6 {[%clk 0:00:21]} 44. Bf7 {[%clk 0:00:23]}  Bd4 {[%clk 0:00:21]} 45. Bxg6+ {[%clk 0:00:23]}  Kxg6 {[%clk 0:00:22]} 46. Nf5 {[%clk 0:00:23]}  Be5 {[%clk 0:00:23]} 47. Ne7+ {[%clk 0:00:23]}  Kg7 {[%clk 0:00:22]} 48. Rf5 {[%clk 0:00:19]}  Bd4 {[%clk 0:00:22]} 49. Nc6 {[%clk 0:00:19]}  Be3 {[%clk 0:00:20]} 50. g3 {[%clk 0:00:20]}  Kg6 {[%clk 0:00:20]} 51. Kg2 {[%clk 0:00:20]}  h5 {[%clk 0:00:20]} 52. Kf3 {[%clk 0:00:21]}  Bg1 {[%clk 0:00:20]} 53. g4 {[%clk 0:00:21]}  h4 {[%clk 0:00:21]} 54. Ne7+ {[%clk 0:00:20]}  Kg7 {[%clk 0:00:18]} 55. Nc8 {[%clk 0:00:21]}  Bd4 {[%clk 0:00:17]} 56. Nd6 {[%clk 0:00:21]}  Bg1 {[%clk 0:00:17]} 57. Nb7 {[%clk 0:00:22]}  Bd4 {[%clk 0:00:17]} 58. Nxc5 {[%clk 0:00:22]}  Kh7 {[%clk 0:00:17]} 59. Na6 {[%clk 0:00:21]}  Kg8 {[%clk 0:00:13]} 60. Nxb4 {[%clk 0:00:22]}  Bg7 {[%clk 0:00:12]} 61. Nc6 {[%clk 0:00:23]}  Bc3 {[%clk 0:00:12]} 62. e5 {[%clk 0:00:23]}  Kh8 {[%clk 0:00:12]} 63. d4 {[%clk 0:00:23]}  Bb2 {[%clk 0:00:11]} 64. d5 {[%clk 0:00:24]}  Ba3 {[%clk 0:00:11]} 65. e6 {[%clk 0:00:25]}  Bd6 {[%clk 0:00:11]} 66. Rh5+ {[%clk 0:00:25]}  Kg7 {[%clk 0:00:11]} 67. Rxh4 {[%clk 0:00:26]}  Kg6 {[%clk 0:00:11]} 68. Rh5 {[%clk 0:00:26]}  Kg7 {[%clk 0:00:12]} 69. Rf5 {[%clk 0:00:26]}  Kh7 {[%clk 0:00:12]} 70. b4 {[%clk 0:00:27]}  Kg8 {[%clk 0:00:12]} 71. b5 {[%clk 0:00:27]}  Bc5 {[%clk 0:00:12]} 72. d6 {[%clk 0:00:27]}  Bxd6 {[%clk 0:00:12]} 73. b6 {[%clk 0:00:27]}  Kg7 {[%clk 0:00:12]} 74. b7 {[%clk 0:00:27]}  Kg6 {[%clk 0:00:12]} 75. Ke4 {[%clk 0:00:28]}  Kg7 {[%clk 0:00:12]} 76. Kd5 {[%clk 0:00:29]}  Bc7 {[%clk 0:00:11]} 77. e7 {[%clk 0:00:28]}  Bd8 {[%clk 0:00:12]} 78. e8=Q {[%clk 0:00:26]}  Bf6 {[%clk 0:00:11]} 79. Qd7+ {[%clk 0:00:24]}  Kh8 {[%clk 0:00:07]} 80. Rh5+ {[%clk 0:00:23]}  Kg8 {[%clk 0:00:07]} 81. Qh7+ {[%clk 0:00:21]}  Kf8 {[%clk 0:00:07]} 82. Rf5 {[%clk 0:00:20]}  Ke8 {[%clk 0:00:07]} 83. Qg8+ {[%clk 0:00:20]}  Kd7 {[%clk 0:00:07]} 84. Qe6+ {[%clk 0:00:20]}  Kc7 {[%clk 0:00:07]} 85. Rxf6 {[%clk 0:00:20]}  Kb6 {[%clk 0:00:07]} 86. Nd4+ {[%clk 0:00:20]}  Ka7 {[%clk 0:00:07]} 87. Qa6+ {[%clk 0:00:20]}  Kb8 {[%clk 0:00:06]} 88. Rf8+ {[%clk 0:00:21]}  Kc7 {[%clk 0:00:03]} 89. b8=Q+ {[%clk 0:00:18]} 1-0


[Site "https://www.chess.com"]

[Event "Titled Tuesday Blitz May 23 Early 2023"]
[White "Necula, Iulian"]
[Black "Degenbaev, Aziz"]
[WhiteFideId "1232380"]
[BlackFideId "13802640"]
[WhiteElo "1790"]
[BlackElo "2152"]
[Result "0-1"]
[Round "01"]
[TimeControl "180+2"]
[Date "2023.05.23"]
[WhiteClock "0:00:05"]
[BlackClock "0:00:20"]

1. d4 {[%clk 0:03:00]}  Nf6 {[%clk 0:02:59]} 2. Nc3 {[%clk 0:03:00]}  d5 {[%clk 0:02:59]} 3. Bf4 {[%clk 0:03:00]}  g6 {[%clk 0:02:56]} 4. e3 {[%clk 0:02:58]}  Bg7 {[%clk 0:02:55]} 5. h4 {[%clk 0:02:58]}  h5 {[%clk 0:02:56]} 6. Qd2 {[%clk 0:02:56]}  O-O {[%clk 0:02:53]} 7. O-O-O {[%clk 0:02:55]}  c5 {[%clk 0:02:37]} 8. Nf3 {[%clk 0:02:52]}  cxd4 {[%clk 0:02:35]} 9. exd4 {[%clk 0:02:52]}  Nc6 {[%clk 0:02:36]} 10. Ne5 {[%clk 0:02:37]}  Bf5 {[%clk 0:02:32]} 11. a3 {[%clk 0:02:35]}  Rc8 {[%clk 0:02:30]} 12. f3 {[%clk 0:02:34]}  a6 {[%clk 0:02:16]} 13. Kb1 {[%clk 0:02:32]}  b5 {[%clk 0:02:15]} 14. Rc1 {[%clk 0:02:28]}  b4 {[%clk 0:02:12]} 15. axb4 {[%clk 0:02:02]}  Nxb4 {[%clk 0:02:12]} 16. Bd3 {[%clk 0:01:57]}  Qa5 {[%clk 0:02:06]} 17. Rce1 {[%clk 0:00:37]}  Nxd3 {[%clk 0:01:48]} 18. Nxd3 {[%clk 0:00:32]}  e6 {[%clk 0:01:29]} 19. Be5 {[%clk 0:00:31]}  Rc4 {[%clk 0:01:26]} 20. Re2 {[%clk 0:00:17]}  Rfc8 {[%clk 0:01:25]} 21. Na2 {[%clk 0:00:17]}  Qxd2 {[%clk 0:01:07]} 22. Rxd2 {[%clk 0:00:17]}  Rxc2 {[%clk 0:01:02]} 23. Rxc2 {[%clk 0:00:17]}  Bxd3 {[%clk 0:01:03]} 24. Rc1 {[%clk 0:00:16]}  Bh6 {[%clk 0:00:46]} 25. Nb4 {[%clk 0:00:15]}  Bxc2+ {[%clk 0:00:37]} 26. Rxc2 {[%clk 0:00:15]}  Rxc2 {[%clk 0:00:37]} 27. Nxc2 {[%clk 0:00:16]}  Nd7 {[%clk 0:00:37]} 28. f4 {[%clk 0:00:15]}  Nxe5 {[%clk 0:00:31]} 29. fxe5 {[%clk 0:00:15]}  a5 {[%clk 0:00:25]} 30. Ka2 {[%clk 0:00:13]}  f6 {[%clk 0:00:21]} 31. exf6 {[%clk 0:00:12]}  Kf7 {[%clk 0:00:21]} 32. Kb3 {[%clk 0:00:13]}  Kxf6 {[%clk 0:00:21]} 33. Ka4 {[%clk 0:00:14]}  Bd2 {[%clk 0:00:22]} 34. b4 {[%clk 0:00:13]}  axb4 {[%clk 0:00:21]} 35. Kb3 {[%clk 0:00:09]}  Kf5 {[%clk 0:00:20]} 36. g3 {[%clk 0:00:07]}  Kg4 {[%clk 0:00:21]} 37. Nxb4 {[%clk 0:00:03]}  Bxb4 {[%clk 0:00:19]} 38. Kxb4 {[%clk 0:00:04]}  Kxg3 {[%clk 0:00:20]} 39. Kc5 {[%clk 0:00:05]}  Kxh4 {[%clk 0:00:17]} 40. Kd6 {[%clk 0:00:06]}  Kg4 {[%clk 0:00:17]} 41. Kxe6 {[%clk 0:00:06]}  h4 {[%clk 0:00:18]} 42. Kxd5 {[%clk 0:00:07]}  h3 {[%clk 0:00:19]} 43. Kc6 {[%clk 0:00:07]}  h2 {[%clk 0:00:20]} 44. d5 {[%clk 0:00:08]}  h1=Q {[%clk 0:00:20]} 45. Kc5 {[%clk 0:00:07]}  Kf5 {[%clk 0:00:20]} 46. d6 {[%clk 0:00:05]}  Ke6 {[%clk 0:00:20]} 0-1


[Site "https://www.chess.com"]

[Event "Titled Tuesday Blitz May 23 Early 2023"]
[White "Arat, Ufuk Sezen"]
[Black "Castillo Pena, Patricia Evarista"]
[WhiteFideId "6309089"]
[BlackFideId "6412106"]
[WhiteElo "2289"]
[BlackElo "1919"]
[Result "1-0"]
[Round "01"]
[TimeControl "180+2"]
[Date "2023.05.23"]
[WhiteClock "0:00:13"]
[BlackClock "0:00:06"]

1. e4 {[%clk 0:03:00]}  c5 {[%clk 0:02:57]} 2. Nf3 {[%clk 0:03:00]}  d6 {[%clk 0:02:57]} 3. d4 {[%clk 0:03:00]}  cxd4 {[%clk 0:02:58]} 4. Nxd4 {[%clk 0:03:01]}  Nf6 {[%clk 0:02:58]} 5. Nc3 {[%clk 0:03:01]}  a6 {[%clk 0:02:58]} 6. Be3 {[%clk 0:03:02]}  e5 {[%clk 0:02:58]} 7. Nf3 {[%clk 0:03:02]}  Be7 {[%clk 0:02:56]} 8. Bc4 {[%clk 0:03:03]}  Be6 {[%clk 0:02:56]} 9. Qe2 {[%clk 0:03:02]}  Qc8 {[%clk 0:02:50]} 10. Bb3 {[%clk 0:03:01]}  O-O {[%clk 0:02:47]} 11. O-O {[%clk 0:03:01]}  Nc6 {[%clk 0:02:43]} 12. Rad1 {[%clk 0:03:02]}  Rd8 {[%clk 0:02:42]} 13. Na4 {[%clk 0:02:54]}  Nd7 {[%clk 0:02:21]} 14. Bxe6 {[%clk 0:02:53]}  fxe6 {[%clk 0:02:21]} 15. Qc4 {[%clk 0:02:47]}  Kf7 {[%clk 0:02:10]} 16. Nb6 {[%clk 0:02:37]}  Nxb6 {[%clk 0:02:10]} 17. Bxb6 {[%clk 0:02:38]}  Rd7 {[%clk 0:02:06]} 18. Rd3 {[%clk 0:02:36]}  Nd4 {[%clk 0:01:58]} 19. Qxc8 {[%clk 0:02:25]}  Rxc8 {[%clk 0:01:59]} 20. Bxd4 {[%clk 0:02:21]}  exd4 {[%clk 0:01:59]} 21. Rxd4 {[%clk 0:02:12]}  Rxc2 {[%clk 0:01:58]} 22. Ne5+ {[%clk 0:02:12]}  Ke8 {[%clk 0:01:52]} 23. Nxd7 {[%clk 0:02:12]}  Kxd7 {[%clk 0:01:53]} 24. Rb1 {[%clk 0:01:41]}  Bf6 {[%clk 0:01:50]} 25. Rdd1 {[%clk 0:01:41]}  Re2 {[%clk 0:01:38]} 26. f3 {[%clk 0:01:35]}  Be5 {[%clk 0:01:33]} 27. g3 {[%clk 0:01:28]}  g5 {[%clk 0:01:32]} 28. Rf1 {[%clk 0:01:22]}  Bd4+ {[%clk 0:01:26]} 29. Kh1 {[%clk 0:01:22]}  e5 {[%clk 0:01:23]} 30. f4 {[%clk 0:01:11]}  gxf4 {[%clk 0:01:22]} 31. gxf4 {[%clk 0:01:11]}  exf4 {[%clk 0:01:17]} 32. Rxf4 {[%clk 0:01:11]}  Be5 {[%clk 0:01:17]} 33. Rh4 {[%clk 0:01:07]}  Kc6 {[%clk 0:01:04]} 34. a4 {[%clk 0:00:48]}  b5 {[%clk 0:01:01]} 35. a5 {[%clk 0:00:32]}  Kc5 {[%clk 0:00:54]} 36. b4+ {[%clk 0:00:26]}  Kc4 {[%clk 0:00:51]} 37. Rxh7 {[%clk 0:00:26]}  Rxe4 {[%clk 0:00:46]} 38. Rc7+ {[%clk 0:00:21]}  Kd5 {[%clk 0:00:44]} 39. Rc2 {[%clk 0:00:17]}  Rc4 {[%clk 0:00:39]} 40. Rd1+ {[%clk 0:00:15]}  Ke6 {[%clk 0:00:35]} 41. Rxc4 {[%clk 0:00:15]}  bxc4 {[%clk 0:00:35]} 42. b5 {[%clk 0:00:15]}  axb5 {[%clk 0:00:33]} 43. a6 {[%clk 0:00:13]}  c3 {[%clk 0:00:21]} 44. a7 {[%clk 0:00:13]}  c2 {[%clk 0:00:21]} 45. Rc1 {[%clk 0:00:13]}  b4 {[%clk 0:00:11]} 46. a8=Q {[%clk 0:00:12]}  b3 {[%clk 0:00:10]} 47. Qg8+ {[%clk 0:00:12]}  Kf5 {[%clk 0:00:06]} 48. Qxb3 {[%clk 0:00:13]} 1-0


[Site "https://www.chess.com"]

[Event "Titled Tuesday Blitz May 23 Early 2023"]
[White "Saim, Mohamed Ilias"]
[Black "Bethke, Richard"]
[WhiteFideId "7900465"]
[BlackFideId "12959243"]
[WhiteElo "2063"]
[BlackElo "2369"]
[Result "1-0"]
[Round "01"]
[TimeControl "180+2"]
[Date "2023.05.23"]
[WhiteClock "0:00:21"]
[BlackClock "0:00:57"]

1. c4 {[%clk 0:02:58]}  Nf6 {[%clk 0:02:59]} 2. Nc3 {[%clk 0:02:55]}  e6 {[%clk 0:02:59]} 3. g3 {[%clk 0:02:54]}  d5 {[%clk 0:03:00]} 4. Bg2 {[%clk 0:02:55]}  Be7 {[%clk 0:02:58]} 5. d4 {[%clk 0:02:54]}  O-O {[%clk 0:02:56]} 6. Nf3 {[%clk 0:02:53]}  b6 {[%clk 0:02:54]} 7. cxd5 {[%clk 0:02:50]}  exd5 {[%clk 0:02:52]} 8. O-O {[%clk 0:02:50]}  Bb7 {[%clk 0:02:51]} 9. Ne5 {[%clk 0:02:47]}  Nbd7 {[%clk 0:02:51]} 10. f4 {[%clk 0:02:37]}  c5 {[%clk 0:02:51]} 11. e3 {[%clk 0:02:35]}  Rc8 {[%clk 0:02:48]} 12. Kh1 {[%clk 0:02:29]}  cxd4 {[%clk 0:02:46]} 13. exd4 {[%clk 0:02:29]}  Ne4 {[%clk 0:02:47]} 14. Qd3 {[%clk 0:02:04]}  f6 {[%clk 0:02:22]} 15. Nxd7 {[%clk 0:02:00]}  Qxd7 {[%clk 0:02:21]} 16. Nxe4 {[%clk 0:01:56]}  dxe4 {[%clk 0:02:19]} 17. Bxe4 {[%clk 0:01:57]}  Bc5 {[%clk 0:01:59]} 18. Be3 {[%clk 0:01:39]}  Kh8 {[%clk 0:01:44]} 19. Rad1 {[%clk 0:01:37]}  Rce8 {[%clk 0:01:41]} 20. Bxb7 {[%clk 0:01:20]}  Qxb7+ {[%clk 0:01:42]} 21. Kg1 {[%clk 0:01:21]}  Bd6 {[%clk 0:01:39]} 22. Bf2 {[%clk 0:01:19]}  Rf7 {[%clk 0:01:32]} 23. Rfe1 {[%clk 0:01:15]}  Rg8 {[%clk 0:01:32]} 24. Qe4 {[%clk 0:01:10]}  Qd7 {[%clk 0:01:31]} 25. Qe6 {[%clk 0:01:10]}  Qd8 {[%clk 0:01:31]} 26. Qxf7 {[%clk 0:01:09]}  g5 {[%clk 0:01:31]} 27. Re6 {[%clk 0:01:04]}  Rf8 {[%clk 0:01:24]} 28. Qh5 {[%clk 0:00:57]}  gxf4 {[%clk 0:01:24]} 29. Rde1 {[%clk 0:00:52]}  fxg3 {[%clk 0:01:19]} 30. hxg3 {[%clk 0:00:51]}  Bxg3 {[%clk 0:01:04]} 31. Bxg3 {[%clk 0:00:43]}  Qxd4+ {[%clk 0:01:04]} 32. Kh2 {[%clk 0:00:34]}  Rg8 {[%clk 0:01:01]} 33. Re8 {[%clk 0:00:32]}  Qd2+ {[%clk 0:01:00]} 34. R1e2 {[%clk 0:00:28]}  Qd3 {[%clk 0:00:57]} 35. Rxg8+ {[%clk 0:00:25]}  Kxg8 {[%clk 0:00:58]} 36. Qe8+ {[%clk 0:00:23]}  Kg7 {[%clk 0:00:58]} 37. Re7+ {[%clk 0:00:22]}  Kh6 {[%clk 0:00:57]} 38. Bf4# {[%clk 0:00:21]} 1-0


[Site "https://www.chess.com"]

[Event "Titled Tuesday Blitz May 23 Early 2023"]
[White "SereneSalmon"]
[Black "Butolo, Alexandru-Mircea"]
[BlackFideId "1261649"]
[WhiteElo "2512"]
[BlackElo "1850"]
[Result "1-0"]
[Round "01"]
[TimeControl "180+2"]
[Date "2023.05.23"]
[WhiteClock "0:01:31"]
[BlackClock "0:00:25"]

1. Nf3 {[%clk 0:03:00]}  Nf6 {[%clk 0:02:58]} 2. g3 {[%clk 0:03:00]}  b5 {[%clk 0:02:57]} 3. Bg2 {[%clk 0:03:00]}  Bb7 {[%clk 0:02:57]} 4. O-O {[%clk 0:03:00]}  e6 {[%clk 0:02:57]} 5. d3 {[%clk 0:03:00]}  Be7 {[%clk 0:02:56]} 6. e4 {[%clk 0:02:59]}  O-O {[%clk 0:02:55]} 7. Nbd2 {[%clk 0:02:57]}  d6 {[%clk 0:02:55]} 8. a4 {[%clk 0:02:56]}  b4 {[%clk 0:02:53]} 9. Re1 {[%clk 0:02:55]}  c5 {[%clk 0:02:51]} 10. c3 {[%clk 0:02:55]}  bxc3 {[%clk 0:02:50]} 11. bxc3 {[%clk 0:02:55]}  Nbd7 {[%clk 0:02:49]} 12. d4 {[%clk 0:02:55]}  cxd4 {[%clk 0:02:47]} 13. cxd4 {[%clk 0:02:56]}  d5 {[%clk 0:02:47]} 14. e5 {[%clk 0:02:56]}  Ne4 {[%clk 0:02:47]} 15. Nxe4 {[%clk 0:02:53]}  dxe4 {[%clk 0:02:48]} 16. Nd2 {[%clk 0:02:53]}  f5 {[%clk 0:02:35]} 17. exf6 {[%clk 0:02:53]}  Nxf6 {[%clk 0:02:30]} 18. Nxe4 {[%clk 0:02:49]}  Bb4 {[%clk 0:02:22]} 19. Nxf6+ {[%clk 0:02:48]}  Qxf6 {[%clk 0:02:22]} 20. Re2 {[%clk 0:02:37]}  Bxg2 {[%clk 0:02:21]} 21. Kxg2 {[%clk 0:02:38]}  Bc3 {[%clk 0:02:06]} 22. Bb2 {[%clk 0:02:33]}  Qf3+ {[%clk 0:02:05]} 23. Kg1 {[%clk 0:02:33]}  Rad8 {[%clk 0:01:56]} 24. Ra3 {[%clk 0:02:15]}  Rc8 {[%clk 0:01:12]} 25. Rxc3 {[%clk 0:02:01]}  Rxc3 {[%clk 0:01:13]} 26. Bxc3 {[%clk 0:02:01]}  Qxc3 {[%clk 0:01:13]} 27. Rxe6 {[%clk 0:02:00]}  Qc4 {[%clk 0:01:14]} 28. Re3 {[%clk 0:01:48]}  Qa2 {[%clk 0:01:10]} 29. Re2 {[%clk 0:01:46]}  Qc4 {[%clk 0:01:09]} 30. d5 {[%clk 0:01:46]}  Rd8 {[%clk 0:01:08]} 31. d6 {[%clk 0:01:45]}  Qc6 {[%clk 0:01:06]} 32. Qb3+ {[%clk 0:01:45]}  Kf8 {[%clk 0:01:05]} 33. Re7 {[%clk 0:01:41]}  Qc1+ {[%clk 0:00:31]} 34. Kg2 {[%clk 0:01:41]}  Qc6+ {[%clk 0:00:31]} 35. Qf3+ {[%clk 0:01:39]}  Qxf3+ {[%clk 0:00:32]} 36. Kxf3 {[%clk 0:01:40]}  a5 {[%clk 0:00:31]} 37. Ra7 {[%clk 0:01:39]}  Rxd6 {[%clk 0:00:32]} 38. Rxa5 {[%clk 0:01:40]}  Rd3+ {[%clk 0:00:32]} 39. Kg2 {[%clk 0:01:40]}  Ra3 {[%clk 0:00:33]} 40. Ra7 {[%clk 0:01:40]}  Kg8 {[%clk 0:00:32]} 41. g4 {[%clk 0:01:35]}  h6 {[%clk 0:00:33]} 42. f4 {[%clk 0:01:35]}  Kh7 {[%clk 0:00:33]} 43. f5 {[%clk 0:01:35]}  Ra2+ {[%clk 0:00:32]} 44. Kg3 {[%clk 0:01:35]}  Ra3+ {[%clk 0:00:33]} 45. Kh4 {[%clk 0:01:36]}  Kg8 {[%clk 0:00:32]} 46. Kh5 {[%clk 0:01:31]}  Rh3+ {[%clk 0:00:25]} 47. Kg6 {[%clk 0:01:31]} 1-0


[Site "https://www.chess.com"]

[Event "Titled Tuesday Blitz May 23 Early 2023"]
[White "Silva Rosas, Natalia"]
[Black "Hamley, Ryan"]
[WhiteFideId "3000575"]
[BlackFideId "30959497"]
[WhiteElo "1651"]
[BlackElo "2512"]
[Result "0-1"]
[Round "01"]
[TimeControl "180+2"]
[Date "2023.05.23"]
[WhiteClock "0:00:11"]
[BlackClock "0:00:49"]

1. e4 {[%clk 0:02:47]}  d6 {[%clk 0:02:59]} 2. d4 {[%clk 0:02:46]}  Nf6 {[%clk 0:02:59]} 3. Nc3 {[%clk 0:02:45]}  c6 {[%clk 0:03:00]} 4. Nf3 {[%clk 0:02:43]}  Qa5 {[%clk 0:03:00]} 5. Bd3 {[%clk 0:02:42]}  e5 {[%clk 0:03:00]} 6. dxe5 {[%clk 0:02:41]}  dxe5 {[%clk 0:03:01]} 7. Bd2 {[%clk 0:02:39]}  Qc7 {[%clk 0:03:00]} 8. O-O {[%clk 0:02:38]}  Be7 {[%clk 0:03:00]} 9. Re1 {[%clk 0:02:35]}  Nbd7 {[%clk 0:03:00]} 10. Bg5 {[%clk 0:02:33]}  h6 {[%clk 0:02:58]} 11. Be3 {[%clk 0:02:32]}  Nc5 {[%clk 0:02:58]} 12. Bxc5 {[%clk 0:02:28]}  Bxc5 {[%clk 0:02:58]} 13. a3 {[%clk 0:02:28]}  a5 {[%clk 0:02:56]} 14. h3 {[%clk 0:02:26]}  O-O {[%clk 0:02:55]} 15. Ne2 {[%clk 0:02:25]}  Rd8 {[%clk 0:02:51]} 16. Ng3 {[%clk 0:02:24]}  Be6 {[%clk 0:02:50]} 17. Qe2 {[%clk 0:02:21]}  b5 {[%clk 0:02:47]} 18. Rad1 {[%clk 0:02:19]}  Re8 {[%clk 0:02:46]} 19. c3 {[%clk 0:02:15]}  Rab8 {[%clk 0:02:27]} 20. Nh4 {[%clk 0:02:15]}  b4 {[%clk 0:02:21]} 21. axb4 {[%clk 0:02:10]}  axb4 {[%clk 0:02:21]} 22. c4 {[%clk 0:02:09]}  b3 {[%clk 0:02:11]} 23. Nhf5 {[%clk 0:02:07]}  Qb6 {[%clk 0:02:05]} 24. Rf1 {[%clk 0:02:00]}  Red8 {[%clk 0:02:03]} 25. Nh5 {[%clk 0:01:55]}  Nxh5 {[%clk 0:01:52]} 26. Qxh5 {[%clk 0:01:55]}  Bf8 {[%clk 0:01:52]} 27. Kh1 {[%clk 0:01:50]}  g6 {[%clk 0:01:41]} 28. Nxh6+ {[%clk 0:01:48]}  Kh7 {[%clk 0:01:41]} 29. Qh4 {[%clk 0:01:36]}  Bxh6 {[%clk 0:01:40]} 30. g4 {[%clk 0:01:36]}  Kg7 {[%clk 0:01:14]} 31. g5 {[%clk 0:01:34]}  Rh8 {[%clk 0:01:14]} 32. gxh6+ {[%clk 0:01:16]}  Rxh6 {[%clk 0:01:15]} 33. Qg5 {[%clk 0:01:10]}  Rxh3+ {[%clk 0:01:14]} 34. Kg2 {[%clk 0:01:07]}  Rh5 {[%clk 0:01:15]} 35. Qe7 {[%clk 0:01:01]}  Rb7 {[%clk 0:00:53]} 36. Qa3 {[%clk 0:00:47]}  Rg5+ {[%clk 0:00:50]} 37. Kh2 {[%clk 0:00:11]}  Rb8 {[%clk 0:00:49]} 0-1


[Site "https://www.chess.com"]